[Event "*** Titled Tuesday Blitz"]
[Site "Chess.com"]
[Date "2020.04.21"]
[Round "4"]
[White "inegrepus"]
[Black "letsgoband"]
[Result "0-1"]
[WhiteElo "2266"]
[BlackElo "2458"]
[TimeControl "180+1"]
[EndTime "10:39:32 PDT"]
[Termination "letsgoband won by resignation"]

1. d4 {[%clk 0:03:00.8]} 1... Nf6 {[%clk 0:02:59.5]} 2. c4 {[%clk 0:03:00.9]}
2... g6 {[%clk 0:02:59.8]} 3. g3 {[%clk 0:03:00.5]} 3... Bg7 {[%clk 0:02:59.6]}
4. Bg2 {[%clk 0:03:00.8]} 4... O-O {[%clk 0:03:00.3]} 5. Nf3 {[%clk 0:03:01.4]}
5... c6 {[%clk 0:03:00.9]} 6. O-O {[%clk 0:02:59.7]} 6... d5 {[%clk 0:03:01.4]}
7. cxd5 {[%clk 0:02:58.5]} 7... cxd5 {[%clk 0:03:02.3]} 8. Nc3 {[%clk
0:02:58.3]} 8... a6 {[%clk 0:03:02.5]} 9. Ne5 {[%clk 0:02:56.6]} 9... h6 {[%clk
0:02:50.3]} 10. Qb3 {[%clk 0:02:54.9]} 10... e6 {[%clk 0:02:43.6]} 11. Bf4
{[%clk 0:02:50.9]} 11... Ne8 {[%clk 0:02:43.1]} 12. Rac1 {[%clk 0:02:48.7]}
12... Nd6 {[%clk 0:02:41.8]} 13. Rfd1 {[%clk 0:02:43.5]} 13... b5 {[%clk
0:02:29.4]} 14. h4 {[%clk 0:02:25.3]} 14... g5 {[%clk 0:02:03.9]} 15. hxg5
{[%clk 0:02:22.2]} 15... hxg5 {[%clk 0:02:04.8]} 16. Be3 {[%clk 0:02:17.5]}
16... Bb7 {[%clk 0:01:56.1]} 17. a4 {[%clk 0:02:13.8]} 17... Nc4 {[%clk
0:01:55.9]} 18. axb5 {[%clk 0:01:57.6]} 18... Nxe3 {[%clk 0:01:55]} 19. fxe3
{[%clk 0:01:56]} 19... Bxe5 {[%clk 0:01:47.3]} 20. dxe5 {[%clk 0:01:55.7]} 20...
Qb6 {[%clk 0:01:47.4]} 21. Na4 {[%clk 0:01:51.3]} 21... Qxb5 {[%clk 0:01:46.6]}
22. Qxb5 {[%clk 0:01:51.2]} 22... axb5 {[%clk 0:01:47.5]} 23. Nc5 {[%clk
0:01:45.6]} 23... Bc6 {[%clk 0:01:47]} 24. e4 {[%clk 0:01:42.6]} 24... dxe4
{[%clk 0:01:45.3]} 25. Nxe4 {[%clk 0:01:40.6]} 25... Bxe4 {[%clk 0:01:44.1]} 26.
Bxe4 {[%clk 0:01:40.2]} 26... Ra2 {[%clk 0:01:41.3]} 27. Rd2 {[%clk 0:01:34.8]}
27... Na6 {[%clk 0:01:40.1]} 28. Rc6 {[%clk 0:01:23.1]} 28... Rb8 {[%clk
0:01:30.1]} 29. Rd7 {[%clk 0:01:10.2]} 29... Rf8 {[%clk 0:01:18.1]} 30. Bd3
{[%clk 0:01:06.4]} 30... Nb8 {[%clk 0:01:18]} 31. Rcc7 {[%clk 0:00:58.8]} 31...
Nxd7 {[%clk 0:01:18.2]} 32. Rxd7 {[%clk 0:00:59.7]} 32... Rxb2 {[%clk
0:01:17.3]} 33. Rb7 {[%clk 0:00:59.3]} 33... b4 {[%clk 0:01:17.4]} 34. Kf2
{[%clk 0:00:57]} 34... Rd8 {[%clk 0:01:15.6]} 35. Kf3 {[%clk 0:00:56]} 35... Rd4
{[%clk 0:01:10.8]} 36. Ba6 {[%clk 0:00:50.6]} 36... Rb3+ {[%clk 0:01:07.7]} 37.
e3 {[%clk 0:00:49.9]} 37... g4+ {[%clk 0:01:04.5]} 38. Ke2 {[%clk 0:00:47.5]}
38... Rb2+ {[%clk 0:01:04.8]} 39. Ke1 {[%clk 0:00:47]} 39... Rdd2 {[%clk
0:01:04.1]} 40. Bb5 {[%clk 0:00:37.7]} 40... Rg2 {[%clk 0:01:02.7]} 41. Kf1
{[%clk 0:00:37.4]} 41... Rh2 {[%clk 0:00:57.5]} 42. Kg1 {[%clk 0:00:37.2]} 42...
Rhd2 {[%clk 0:00:54.9]} 43. Bf1 {[%clk 0:00:28.7]} 43... Rb1 {[%clk 0:00:54.5]}
0-1

[Event "*** Titled Tuesday Blitz"]
[Site "Chess.com"]
[Date "2020.04.21"]
[Round "4"]
[White "Gabix_94"]
[Black "AleksanderHnydiuk"]
[Result "0-1"]
[WhiteElo "2805"]
[BlackElo "2578"]
[TimeControl "180+1"]
[EndTime "10:39:33 PDT"]
[Termination "AleksanderHnydiuk won by checkmate"]

1. d4 {[%clk 0:03:00.6]} 1... d5 {[%clk 0:02:59.7]} 2. c4 {[%clk 0:03:01]} 2...
c6 {[%clk 0:03:00.1]} 3. Nf3 {[%clk 0:03:00.3]} 3... Nf6 {[%clk 0:03:00.3]} 4.
Nc3 {[%clk 0:03:00.8]} 4... dxc4 {[%clk 0:03:00.7]} 5. e4 {[%clk 0:03:00.8]}
5... b5 {[%clk 0:03:00.1]} 6. Be2 {[%clk 0:03:01]} 6... Bg4 {[%clk 0:02:58.5]}
7. O-O {[%clk 0:02:58.8]} 7... e6 {[%clk 0:02:58.4]} 8. a4 {[%clk 0:02:36.6]}
8... b4 {[%clk 0:02:56.4]} 9. e5 {[%clk 0:02:35.9]} 9... bxc3 {[%clk 0:02:22.2]}
10. exf6 {[%clk 0:02:34]} 10... cxb2 {[%clk 0:02:21.1]} 11. fxg7 {[%clk
0:02:15.6]} 11... Bxg7 {[%clk 0:02:10.9]} 12. Bxb2 {[%clk 0:02:14.3]} 12... O-O
{[%clk 0:02:08.4]} 13. Ne5 {[%clk 0:02:08.6]} 13... Bxe5 {[%clk 0:01:49.1]} 14.
Bxg4 {[%clk 0:02:07.2]} 14... Bg7 {[%clk 0:01:47.1]} 15. Rc1 {[%clk 0:01:59.5]}
15... Nd7 {[%clk 0:01:33.6]} 16. Rxc4 {[%clk 0:01:54.1]} 16... c5 {[%clk
0:01:31.6]} 17. Qc2 {[%clk 0:01:38.7]} 17... Qb6 {[%clk 0:01:02.5]} 18. a5
{[%clk 0:01:17.6]} 18... Qxa5 {[%clk 0:00:47.8]} 19. dxc5 {[%clk 0:00:52.1]}
19... Qa2 {[%clk 0:00:47.1]} 20. Bxe6 {[%clk 0:00:25.9]} 20... fxe6 {[%clk
0:00:32.6]} 21. Rg4 {[%clk 0:00:25.8]} 21... Rf7 {[%clk 0:00:15.1]} 22. Ra1
{[%clk 0:00:22.1]} 22... Qd5 {[%clk 0:00:13.9]} 23. Rd1 {[%clk 0:00:17.3]} 23...
Qxc5 {[%clk 0:00:13.7]} 24. Qe4 {[%clk 0:00:16.9]} 24... Qxf2+ {[%clk
0:00:10.4]} 25. Kh1 {[%clk 0:00:16.6]} 25... Qf1+ {[%clk 0:00:10.7]} 26. Rxf1
{[%clk 0:00:15.6]} 26... Rxf1# {[%clk 0:00:11.6]} 0-1

[Event "*** Titled Tuesday Blitz"]
[Site "Chess.com"]
[Date "2020.04.21"]
[Round "4"]
[White "Chichin_chao"]
[Black "ChessicallyInclined"]
[Result "1/2-1/2"]
[WhiteElo "2370"]
[BlackElo "2604"]
[TimeControl "180+1"]
[EndTime "10:39:36 PDT"]
[Termination "Game drawn by repetition"]

1. e4 {[%clk 0:03:00.9]} 1... d6 {[%clk 0:02:58.4]} 2. d4 {[%clk 0:02:59.4]}
2... Nf6 {[%clk 0:02:58.6]} 3. Nc3 {[%clk 0:02:59.6]} 3... g6 {[%clk 0:02:59.1]}
4. Nf3 {[%clk 0:02:59.8]} 4... Bg7 {[%clk 0:02:59]} 5. Bc4 {[%clk 0:02:58.7]}
5... O-O {[%clk 0:02:59]} 6. O-O {[%clk 0:02:58.1]} 6... Bg4 {[%clk 0:02:59.4]}
7. h3 {[%clk 0:02:27.6]} 7... Bxf3 {[%clk 0:02:58.5]} 8. Qxf3 {[%clk 0:02:28.5]}
8... Nc6 {[%clk 0:02:59.2]} 9. Qd1 {[%clk 0:02:28.9]} 9... e5 {[%clk 0:02:59.4]}
10. dxe5 {[%clk 0:02:26.3]} 10... dxe5 {[%clk 0:02:57.9]} 11. Be3 {[%clk
0:02:23]} 11... Nd4 {[%clk 0:02:57.2]} 12. a3 {[%clk 0:02:19.9]} 12... c6 {[%clk
0:02:57.2]} 13. Qd2 {[%clk 0:02:16.1]} 13... Nh5 {[%clk 0:02:47.1]} 14. Ne2
{[%clk 0:02:05.3]} 14... b5 {[%clk 0:02:33.4]} 15. Ba2 {[%clk 0:02:01.3]} 15...
Qh4 {[%clk 0:02:17.3]} 16. f3 {[%clk 0:01:26.5]} 16... Rad8 {[%clk 0:02:00]} 17.
Nxd4 {[%clk 0:01:25.9]} 17... exd4 {[%clk 0:01:58.7]} 18. Bg5 {[%clk 0:01:25.8]}
18... Qg3 {[%clk 0:01:49.1]} 19. Bxd8 {[%clk 0:01:25]} 19... Be5 {[%clk
0:01:18]} 20. f4 {[%clk 0:01:14.4]} 20... Nxf4 {[%clk 0:01:16.2]} 21. Rf3 {[%clk
0:01:10.8]} 21... Nxh3+ {[%clk 0:00:51.3]} 22. Kf1 {[%clk 0:01:10.2]} 22... Qg4
{[%clk 0:00:46]} 23. Rxh3 {[%clk 0:00:34.5]} 23... Rxd8 {[%clk 0:00:45.4]} 24.
Rf3 {[%clk 0:00:34.3]} 24... Rf8 {[%clk 0:00:42.3]} 25. Kg1 {[%clk 0:00:33.5]}
25... Kg7 {[%clk 0:00:19.2]} 26. Qe2 {[%clk 0:00:29.3]} 26... f6 {[%clk
0:00:18.5]} 27. Rd1 {[%clk 0:00:26.5]} 27... Qh5 {[%clk 0:00:18.3]} 28. a4
{[%clk 0:00:23.4]} 28... Qh2+ {[%clk 0:00:18]} 29. Kf2 {[%clk 0:00:22.8]} 29...
Qh4+ {[%clk 0:00:17.7]} 30. Kf1 {[%clk 0:00:20.3]} 30... Qh1+ {[%clk 0:00:17.8]}
31. Kf2 {[%clk 0:00:20.7]} 31... Qh4+ {[%clk 0:00:17.4]} 32. Kg1 {[%clk
0:00:21.1]} 32... Qh2+ {[%clk 0:00:17]} 33. Kf2 {[%clk 0:00:21.2]} 33... Qh4+
{[%clk 0:00:17.3]} 1/2-1/2

[Event "*** Titled Tuesday Blitz"]
[Site "Chess.com"]
[Date "2020.04.21"]
[Round "4"]
[White "realmadridtv"]
[Black "algatar2020"]
[Result "0-1"]
[WhiteElo "2277"]
[BlackElo "1941"]
[TimeControl "180+1"]
[EndTime "10:39:39 PDT"]
[Termination "algatar2020 won by checkmate"]

1. e4 {[%clk 0:03:00.9]} 1... d6 {[%clk 0:02:58.5]} 2. d4 {[%clk 0:02:59.8]}
2... g6 {[%clk 0:02:58]} 3. Nc3 {[%clk 0:02:59.4]} 3... Bg7 {[%clk 0:02:58]} 4.
f4 {[%clk 0:03:00]} 4... Nf6 {[%clk 0:02:57.6]} 5. Nf3 {[%clk 0:02:59.9]} 5...
Nfd7 {[%clk 0:02:55.6]} 6. Bc4 {[%clk 0:02:51.8]} 6... O-O {[%clk 0:02:53.3]} 7.
h4 {[%clk 0:02:50.1]} 7... e5 {[%clk 0:02:52.1]} 8. h5 {[%clk 0:02:39.6]} 8...
exd4 {[%clk 0:02:50.5]} 9. hxg6 {[%clk 0:02:35.1]} 9... dxc3 {[%clk 0:02:45.5]}
10. gxf7+ {[%clk 0:02:33.5]} 10... Kh8 {[%clk 0:02:24.2]} 11. Rxh7+ {[%clk
0:02:28.1]} 11... Kxh7 {[%clk 0:02:23.2]} 12. Ng5+ {[%clk 0:02:28]} 12... Kg6
{[%clk 0:02:21.5]} 13. Qg4 {[%clk 0:01:54.1]} 13... Ne5 {[%clk 0:02:20.8]} 14.
f5+ {[%clk 0:01:52.1]} 14... Kf6 {[%clk 0:02:16]} 15. Qh4 {[%clk 0:01:52.1]}
15... Nxc4 {[%clk 0:02:11.5]} 16. Ne6+ {[%clk 0:01:27.4]} 16... Kxf7 {[%clk
0:02:10.8]} 17. Nxd8+ {[%clk 0:01:26.5]} 17... Ke8 {[%clk 0:02:05]} 18. b3
{[%clk 0:01:23.2]} 18... Nd2 {[%clk 0:01:59.3]} 19. Ne6 {[%clk 0:01:16.2]} 19...
Bxe6 {[%clk 0:01:58.4]} 20. fxe6 {[%clk 0:01:17.1]} 20... Nc6 {[%clk 0:01:53.8]}
21. Qh5+ {[%clk 0:01:09.9]} 21... Kd8 {[%clk 0:01:50.4]} 22. Ke2 {[%clk
0:00:58.4]} 22... Nd4+ {[%clk 0:01:47.6]} 23. Kd3 {[%clk 0:00:58.3]} 23... Nxe6
{[%clk 0:01:46.2]} 24. Qh4+ {[%clk 0:00:45.7]} 24... Kd7 {[%clk 0:01:39.5]} 25.
Qg4 {[%clk 0:00:36.6]} 25... Rf4 {[%clk 0:01:28.6]} 26. Qg6 {[%clk 0:00:26.3]}
26... Raf8 {[%clk 0:01:19.8]} 27. Bxd2 {[%clk 0:00:22.5]} 27... cxd2 {[%clk
0:01:19]} 28. Rd1 {[%clk 0:00:17.5]} 28... Rf2 {[%clk 0:01:18.6]} 29. Qg4 {[%clk
0:00:15.2]} 29... R8f4 {[%clk 0:01:14.6]} 30. Qh3 {[%clk 0:00:13.8]} 30... Ke7
{[%clk 0:01:09.3]} 31. g3 {[%clk 0:00:14.2]} 31... Nc5+ {[%clk 0:01:03.1]} 32.
Kc4 {[%clk 0:00:07.4]} 32... Rxe4+ {[%clk 0:01:02.4]} 33. Kb5 {[%clk 0:00:05.6]}
33... c6+ {[%clk 0:00:59.9]} 34. Ka5 {[%clk 0:00:05]} 34... Bc3+ {[%clk
0:00:57.8]} 35. b4 {[%clk 0:00:04.1]} 35... b6# {[%clk 0:00:56.5]} 0-1

[Event "*** Titled Tuesday Blitz"]
[Site "Chess.com"]
[Date "2020.04.21"]
[Round "4"]
[White "DDTerziev04"]
[Black "MateSchmate"]
[Result "0-1"]
[WhiteElo "2279"]
[BlackElo "2463"]
[TimeControl "180+1"]
[EndTime "10:39:42 PDT"]
[Termination "MateSchmate won by resignation"]

1. e4 {[%clk 0:03:00.9]} 1... e6 {[%clk 0:02:59.7]} 2. d4 {[%clk 0:02:57.6]}
2... d5 {[%clk 0:02:59.8]} 3. Nc3 {[%clk 0:02:57]} 3... Bb4 {[%clk 0:02:58.9]}
4. Ne2 {[%clk 0:02:56.3]} 4... dxe4 {[%clk 0:02:56.3]} 5. a3 {[%clk 0:02:55.5]}
5... Be7 {[%clk 0:02:56.9]} 6. Nxe4 {[%clk 0:02:54.7]} 6... b6 {[%clk
0:02:57.4]} 7. N2g3 {[%clk 0:02:41.6]} 7... Bb7 {[%clk 0:02:57]} 8. f3 {[%clk
0:02:29.7]} 8... Nd7 {[%clk 0:02:57]} 9. Bd3 {[%clk 0:02:26.1]} 9... Ngf6 {[%clk
0:02:57]} 10. O-O {[%clk 0:02:25]} 10... h5 {[%clk 0:02:57.1]} 11. c3 {[%clk
0:02:20.8]} 11... h4 {[%clk 0:02:56]} 12. Nxf6+ {[%clk 0:02:20.1]} 12... Nxf6
{[%clk 0:02:54]} 13. Ne4 {[%clk 0:02:20.1]} 13... h3 {[%clk 0:02:54.4]} 14. g3
{[%clk 0:02:18.5]} 14... a6 {[%clk 0:02:43.5]} 15. Nxf6+ {[%clk 0:02:17.8]}
15... Bxf6 {[%clk 0:02:44.4]} 16. Be4 {[%clk 0:02:17.5]} 16... Bd5 {[%clk
0:02:29.3]} 17. Qe2 {[%clk 0:01:55.9]} 17... b5 {[%clk 0:02:23.7]} 18. Bxd5
{[%clk 0:01:54.1]} 18... Qxd5 {[%clk 0:02:24.6]} 19. Qe4 {[%clk 0:01:53.8]}
19... O-O-O {[%clk 0:02:24.4]} 20. Qxd5 {[%clk 0:01:53.3]} 20... Rxd5 {[%clk
0:02:24.5]} 21. Be3 {[%clk 0:01:51.6]} 21... Rhd8 {[%clk 0:02:21.2]} 22. Kf2
{[%clk 0:01:46.2]} 22... Kb7 {[%clk 0:02:16.2]} 23. Ke2 {[%clk 0:01:45.2]} 23...
Be7 {[%clk 0:02:15.8]} 24. Rfd1 {[%clk 0:01:44.3]} 24... Kb6 {[%clk 0:02:10.6]}
25. Rac1 {[%clk 0:01:38]} 25... c5 {[%clk 0:02:10.2]} 26. c4 {[%clk 0:01:17.5]}
26... bxc4 {[%clk 0:02:10.3]} 27. Rxc4 {[%clk 0:01:11.3]} 27... Kb5 {[%clk
0:02:10.8]} 28. b3 {[%clk 0:01:03.6]} 28... e5 {[%clk 0:02:04.5]} 29. a4+ {[%clk
0:01:02.4]} 29... Kc6 {[%clk 0:02:04.8]} 30. b4 {[%clk 0:00:40.5]} 30... exd4
{[%clk 0:01:59.7]} 31. Bf2 {[%clk 0:00:40.2]} 31... Kb7 {[%clk 0:01:54.4]} 32.
bxc5 {[%clk 0:00:33.6]} 32... Bxc5 {[%clk 0:01:49.1]} 33. Rb1+ {[%clk
0:00:32.9]} 33... Ka7 {[%clk 0:01:44.9]} 34. Kd3 {[%clk 0:00:31.4]} 34... Bb6
{[%clk 0:01:36.3]} 35. Rc6 {[%clk 0:00:24.2]} 35... Rb8 {[%clk 0:01:22.2]} 36.
a5 {[%clk 0:00:13.1]} 36... Bxa5 {[%clk 0:01:20.6]} 37. Rxa6+ {[%clk 0:00:12.6]}
37... Kxa6 {[%clk 0:01:19.8]} 38. Rxb8 {[%clk 0:00:12.5]} 38... Bb6 {[%clk
0:01:19.1]} 39. Rf8 {[%clk 0:00:11.5]} 39... Rf5 {[%clk 0:01:15.9]} 40. f4
{[%clk 0:00:11.4]} 40... g5 {[%clk 0:01:15.3]} 41. Rc8 {[%clk 0:00:07.1]} 41...
gxf4 {[%clk 0:01:14]} 42. Rc6 {[%clk 0:00:06.1]} 42... Kb5 {[%clk 0:01:12.7]}
43. Rd6 {[%clk 0:00:05]} 43... fxg3 {[%clk 0:01:11.9]} 44. Bxg3 {[%clk
0:00:05.4]} 44... Rf3+ {[%clk 0:01:10.4]} 45. Kd2 {[%clk 0:00:05.2]} 45... Bc7
{[%clk 0:01:04.3]} 46. Rd5+ {[%clk 0:00:04]} 46... Kc4 {[%clk 0:01:04.4]} 47.
Rh5 {[%clk 0:00:03.7]} 47... Bxg3 {[%clk 0:01:03]} 48. hxg3 {[%clk 0:00:03.9]}
48... Rxg3 {[%clk 0:01:03]} 0-1

[Event "*** Titled Tuesday Blitz"]
[Site "Chess.com"]
[Date "2020.04.21"]
[Round "4"]
[White "ALeks_Ivlev"]
[Black "narutosmith"]
[Result "1-0"]
[WhiteElo "2525"]
[BlackElo "2260"]
[TimeControl "180+1"]
[EndTime "10:39:43 PDT"]
[Termination "ALeks_Ivlev won by resignation"]

1. d4 {[%clk 0:03:00.9]} 1... Nf6 {[%clk 0:02:59.1]} 2. c4 {[%clk 0:03:01.1]}
2... e6 {[%clk 0:02:59.3]} 3. Nf3 {[%clk 0:03:01.1]} 3... Bb4+ {[%clk
0:02:59.3]} 4. Nbd2 {[%clk 0:03:01.1]} 4... O-O {[%clk 0:02:57.5]} 5. a3 {[%clk
0:02:59]} 5... Bxd2+ {[%clk 0:02:56.4]} 6. Bxd2 {[%clk 0:02:57.7]} 6... d6
{[%clk 0:02:54.7]} 7. g3 {[%clk 0:02:58]} 7... Nbd7 {[%clk 0:02:54.7]} 8. Bg2
{[%clk 0:02:58.4]} 8... e5 {[%clk 0:02:55.3]} 9. O-O {[%clk 0:02:58.2]} 9... Re8
{[%clk 0:02:53]} 10. Rc1 {[%clk 0:02:52]} 10... exd4 {[%clk 0:02:50.4]} 11. Nxd4
{[%clk 0:02:50.3]} 11... a5 {[%clk 0:02:44.9]} 12. b4 {[%clk 0:02:48.6]} 12...
axb4 {[%clk 0:02:42.5]} 13. axb4 {[%clk 0:02:49.5]} 13... c6 {[%clk 0:02:37.4]}
14. Bf4 {[%clk 0:02:48]} 14... Ne5 {[%clk 0:02:36.8]} 15. Nf3 {[%clk 0:02:47.3]}
15... Bg4 {[%clk 0:02:06.5]} 16. h3 {[%clk 0:02:40.3]} 16... Nxf3+ {[%clk
0:02:00.6]} 17. exf3 {[%clk 0:02:41.2]} 17... Bf5 {[%clk 0:01:49.4]} 18. Qxd6
{[%clk 0:02:41.1]} 18... Ra4 {[%clk 0:01:33.1]} 19. Qxd8 {[%clk 0:02:38.8]}
19... Rxd8 {[%clk 0:01:32.8]} 20. b5 {[%clk 0:02:39.4]} 20... h6 {[%clk
0:01:21]} 21. Rfe1 {[%clk 0:02:33.4]} 21... Rd4 {[%clk 0:01:16.7]} 22. bxc6
{[%clk 0:02:19]} 22... bxc6 {[%clk 0:01:16]} 23. c5 {[%clk 0:02:19.5]} 23...
Rdc4 {[%clk 0:01:11.5]} 24. Bd6 {[%clk 0:02:15.3]} 24... Rxc1 {[%clk 0:01:04.9]}
25. Rxc1 {[%clk 0:02:14.8]} 25... Rb4 {[%clk 0:01:02.1]} 26. Ra1 {[%clk
0:02:04.5]} 26... Rb1+ {[%clk 0:01:01.7]} 27. Rxb1 {[%clk 0:02:03.6]} 27... Bxb1
{[%clk 0:01:02.6]} 28. Bf1 {[%clk 0:01:59]} 28... Nd5 {[%clk 0:00:59.6]} 29. Bc4
{[%clk 0:01:51]} 29... Nb4 {[%clk 0:00:54.2]} 30. h4 {[%clk 0:01:33.4]} 30...
Bd3 {[%clk 0:00:52]} 31. Bb3 {[%clk 0:01:31.4]} 31... Bc2 {[%clk 0:00:50.1]} 32.
Bxc2 {[%clk 0:01:27.6]} 32... Nxc2 {[%clk 0:00:49.7]} 33. Kf1 {[%clk 0:01:28.2]}
33... Nd4 {[%clk 0:00:48.2]} 34. Be5 {[%clk 0:01:19.5]} 34... Nxf3 {[%clk
0:00:39.6]} 35. Bc3 {[%clk 0:01:19.3]} 35... Nh2+ {[%clk 0:00:38.7]} 36. Kg2
{[%clk 0:01:19.4]} 36... Ng4 {[%clk 0:00:39]} 37. Kf3 {[%clk 0:01:19.1]} 37...
Nh2+ {[%clk 0:00:37]} 38. Kg2 {[%clk 0:01:14.8]} 38... Ng4 {[%clk 0:00:36.3]}
39. Bd4 {[%clk 0:01:15.2]} 39... f5 {[%clk 0:00:30.7]} 40. f3 {[%clk 0:01:11.5]}
40... Nf6 {[%clk 0:00:30.2]} 41. Bxf6 {[%clk 0:01:11.7]} 41... gxf6 {[%clk
0:00:31.1]} 42. Kf2 {[%clk 0:01:12.3]} 42... Kf7 {[%clk 0:00:28.8]} 43. Ke3
{[%clk 0:01:12.8]} 43... Ke6 {[%clk 0:00:28.5]} 44. Kf4 {[%clk 0:01:13.7]} 44...
Kd5 {[%clk 0:00:27.8]} 45. Kxf5 {[%clk 0:01:14.2]} 45... Kxc5 {[%clk 0:00:27.2]}
46. Kxf6 {[%clk 0:01:06.5]} 46... Kd5 {[%clk 0:00:25.3]} 47. g4 {[%clk
0:01:07.1]} 47... c5 {[%clk 0:00:25]} 48. g5 {[%clk 0:01:07.6]} 48... c4 {[%clk
0:00:17.6]} 49. g6 {[%clk 0:01:07.1]} 49... c3 {[%clk 0:00:17.9]} 50. g7 {[%clk
0:01:07.7]} 50... c2 {[%clk 0:00:17.9]} 51. g8=Q+ {[%clk 0:01:08.6]} 51... Kd4
{[%clk 0:00:17]} 52. Qg1+ {[%clk 0:01:09.2]} 52... Kd3 {[%clk 0:00:16.9]} 53.
Qc1 {[%clk 0:01:09.6]} 53... Kc3 {[%clk 0:00:17.1]} 54. f4 {[%clk 0:01:06.6]}
1-0

[Event "*** Titled Tuesday Blitz"]
[Site "Chess.com"]
[Date "2020.04.21"]
[Round "4"]
[White "woodhy"]
[Black "IngOscarArdila"]
[Result "1-0"]
[WhiteElo "2265"]
[BlackElo "2049"]
[TimeControl "180+1"]
[EndTime "10:39:43 PDT"]
[Termination "woodhy won by checkmate"]

1. e4 {[%clk 0:02:55.5]} 1... e5 {[%clk 0:02:59.7]} 2. Nf3 {[%clk 0:02:55.4]}
2... Nf6 {[%clk 0:03:00.2]} 3. Nxe5 {[%clk 0:02:54.9]} 3... d6 {[%clk
0:02:58.5]} 4. Nf3 {[%clk 0:02:55.3]} 4... Nxe4 {[%clk 0:02:58.9]} 5. d4 {[%clk
0:02:56.2]} 5... d5 {[%clk 0:02:58.8]} 6. Bd3 {[%clk 0:02:56.7]} 6... Be7 {[%clk
0:02:59.1]} 7. O-O {[%clk 0:02:56.9]} 7... Nc6 {[%clk 0:02:59.6]} 8. Re1 {[%clk
0:02:57.2]} 8... Nf6 {[%clk 0:02:59.3]} 9. Bf4 {[%clk 0:02:56.8]} 9... O-O
{[%clk 0:02:58.9]} 10. c3 {[%clk 0:02:57.2]} 10... Bg4 {[%clk 0:02:57.6]} 11.
Nbd2 {[%clk 0:02:57.7]} 11... Re8 {[%clk 0:02:56.8]} 12. h3 {[%clk 0:02:57.8]}
12... Bh5 {[%clk 0:02:56.6]} 13. Qb3 {[%clk 0:02:57.6]} 13... Na5 {[%clk
0:02:55.7]} 14. Qa4 {[%clk 0:02:55]} 14... b6 {[%clk 0:02:54.7]} 15. b4 {[%clk
0:02:53.3]} 15... Nb7 {[%clk 0:02:45.6]} 16. Ne5 {[%clk 0:02:47.3]} 16... Nd6
{[%clk 0:02:12.6]} 17. Qc6 {[%clk 0:02:33.6]} 17... Bf8 {[%clk 0:02:02.6]} 18.
a4 {[%clk 0:02:27.9]} 18... Bg6 {[%clk 0:01:59.2]} 19. Nxg6 {[%clk 0:02:17.2]}
19... hxg6 {[%clk 0:01:58.4]} 20. Nf3 {[%clk 0:02:12.6]} 20... Nfe4 {[%clk
0:01:55.2]} 21. Ne5 {[%clk 0:01:59.2]} 21... Qf6 {[%clk 0:01:36.6]} 22. Be3
{[%clk 0:01:42.6]} 22... Rad8 {[%clk 0:01:26.9]} 23. a5 {[%clk 0:01:35.4]} 23...
Rxe5 {[%clk 0:01:24.5]} 24. dxe5 {[%clk 0:01:33]} 24... Qxe5 {[%clk 0:01:24.7]}
25. Bd4 {[%clk 0:01:31.1]} 25... Qf4 {[%clk 0:01:13.8]} 26. axb6 {[%clk
0:01:26.4]} 26... axb6 {[%clk 0:01:12.4]} 27. Qxd5 {[%clk 0:01:25.6]} 27... Nf6
{[%clk 0:01:08.1]} 28. Qe5 {[%clk 0:01:19.6]} 28... Qh4 {[%clk 0:01:04.6]} 29.
Qg3 {[%clk 0:01:12.5]} 29... Qh5 {[%clk 0:01:03.1]} 30. Ra7 {[%clk 0:01:09.2]}
30... c5 {[%clk 0:00:57.1]} 31. bxc5 {[%clk 0:01:10.1]} 31... bxc5 {[%clk
0:00:57.7]} 32. Be3 {[%clk 0:01:02.6]} 32... c4 {[%clk 0:00:55.1]} 33. Be2
{[%clk 0:01:00.7]} 33... Qf5 {[%clk 0:00:53.4]} 34. Bf3 {[%clk 0:00:58.8]} 34...
Nde4 {[%clk 0:00:47.2]} 35. Qc7 {[%clk 0:00:52.5]} 35... Rd7 {[%clk 0:00:41.1]}
36. Qxc4 {[%clk 0:00:48.9]} 36... Nd2 {[%clk 0:00:18.3]} 37. Bxd2 {[%clk
0:00:44.5]} 37... Rxd2 {[%clk 0:00:19.2]} 38. Ra8 {[%clk 0:00:44.1]} 38... Qc2
{[%clk 0:00:15.2]} 39. Qc5 {[%clk 0:00:41.7]} 39... Rxf2 {[%clk 0:00:13.8]} 40.
Qxf8+ {[%clk 0:00:39.7]} 40... Kh7 {[%clk 0:00:13.6]} 41. Qh8# {[%clk
0:00:40.6]} 1-0